bitfinex-derivatives/quotes_BTCF0:USTF0_20241227
["timestamp","ask_amount","ask_price","bid_price","bid_amount"]
[1735263392676,1.003,95895.0,95894.0,0.07172382]
[1735263394371,1.003,95895.0,95894.0,0.01951682]
[1735263394567,0.052208,95893.0,95870.0,0.51127717]
[1735263394765,1.00356001,95895.0,95880.0,0.12822979]
[1735263394966,1.003,95895.0,95882.0,0.052214]
[1735263395365,1.055207,95895.0,95882.0,0.052214]
[1735263395964,1.055207,95895.0,95880.0,0.07601479]
[1735263395965,0.052208,95893.0,95885.0,0.18674609]
[1735263396574,0.052209,95892.0,95885.0,0.18674609]
[1735263396775,1.00056001,95895.0,95885.0,0.18674609]
[1735263396776,0.05221,95890.0,95885.0,0.18674609]
[1735263396968,0.1655,95889.0,95885.0,0.18674609]
[1735263397773,0.1655,95889.0,95878.0,0.052216]
[1735263397774,0.1248047,95888.0,95878.0,0.052216]
[1735263398868,0.1248047,95886.0,95878.0,0.052216]
[1735263399579,0.1248047,95886.0,95878.0,0.07180162]
[1735263400172,0.1248047,95885.0,95878.0,0.01958562]
[1735263400372,0.1248047,95885.0,95883.0,0.052213]
[1735263401468,0.1248047,95887.0,95883.0,0.052213]
[1735263402564,0.1248047,95887.0,95884.0,0.052213]
[1735263402775,0.1248047,95887.0,95883.0,0.01943849]
[1735263402776,0.1258047,95887.0,95885.0,0.052212]
[1735263403870,0.001,95887.0,95885.0,0.052212]
[1735263405276,0.002,95887.0,95884.0,0.052213]
[1735263405472,0.002,95887.0,95886.0,0.052212]
[1735263406075,1.0,95895.0,95894.0,0.052207]
[1735263408782,1.003,95895.0,95894.0,0.052207]
[1735263414591,1.003,95895.0,95894.0,0.07691983]
[1735263422501,1.055207,95895.0,95888.0,0.18674609]
[1735263422797,0.05221,95889.0,95888.0,0.18674609]
[1735263423593,0.05221,95889.0,95888.0,0.05114609]
[1735263423994,0.20821587,95889.0,95870.0,0.24899479]
[1735263424297,4e-05,95871.0,95870.0,0.24899479]
[1735263425191,0.1250515,95871.0,95870.0,0.05222]
[1735263425899,0.1250515,95871.0,95870.0,0.05522]
[1735263426095,0.1250515,95871.0,95870.0,0.07948726]
[1735263426397,4e-05,95871.0,95870.0,0.07648726]
[1735263426595,4e-05,95871.0,95870.0,0.02526726]
[1735263426992,4e-05,95871.0,95870.0,0.02626726]
[1735263427791,4e-05,95871.0,95870.0,0.02526726]
[1735263429002,4e-05,95871.0,95870.0,0.02426726]
[1735263429200,4e-05,95871.0,95868.0,0.35064]
[1735263429392,4e-05,95871.0,95870.0,0.05222]
[1735263430097,0.139011,95888.0,95868.0,0.35064]
[1735263430098,0.1250115,95878.0,95874.0,0.052218]
[1735263430499,0.1250115,95878.0,95877.0,0.052217]
[1735263431505,0.1260115,95878.0,95877.0,0.052217]
[1735263431701,0.001,95878.0,95877.0,0.052217]
[1735263432293,0.1250115,95888.0,95887.0,0.052211]
[1735263432896,1.12557151,95895.0,95880.0,0.052215]
[1735263433206,1.1250115,95895.0,95894.0,0.052207]
[1735263434299,1.0,95895.0,95894.0,0.052207]
[1735263435104,1.003,95895.0,95894.0,0.052207]
[1735263441102,1.003,95895.0,95894.0,0.08343223]
[1735263448011,0.94220026,95895.0,95894.0,0.08343223]
[1735263448208,0.77746388,95895.0,95894.0,0.08343223]
[1735263449611,0.77746388,95895.0,95894.0,0.08543223]
[1735263450117,0.77446388,95895.0,95894.0,0.08543223]
[1735263450809,0.69763172,95895.0,95894.0,0.08543223]
[1735263454118,0.66141502,95895.0,95894.0,0.08543223]
[1735263455010,0.66141502,95895.0,95894.0,0.43603223]
[1735263456110,0.65318877,95895.0,95894.0,0.43603223]
[1735263456714,0.61216877,95895.0,95894.0,0.43603223]
[1735263457621,0.54712341,95895.0,95894.0,0.43603223]
[1735263458621,0.52033341,95895.0,95894.0,0.43603223]
[1735263460920,0.52033341,95895.0,95894.0,0.65969131]
[1735263461421,0.43481721,95895.0,95894.0,0.65969131]
[1735263461623,0.42930804,95895.0,95894.0,0.65969131]
[1735263462411,0.22655231,95895.0,95894.0,0.65969131]
[1735263462927,0.09359656,95918.0,95894.0,0.90748431]
[1735263463127,0.1250115,95922.0,95917.0,0.052195]
[1735263463521,0.1250115,95921.0,95917.0,0.052195]
[1735263465421,0.092,95934.0,95917.0,0.36546071]
[1735263465616,0.092,95934.0,95918.0,0.052194]
[1735263465919,0.092,95934.0,95917.0,0.39577943]
[1735263466228,0.092,95934.0,95933.0,0.052187]
[1735263466430,0.092,95934.0,95924.0,0.05696241]
[1735263466431,0.1250115,95941.0,95940.0,0.052183]
[1735263466721,0.1250115,95941.0,95940.0,0.402703]
[1735263466921,0.1250115,95946.0,95940.0,0.35052]
[1735263467322,0.0909,95945.0,95941.0,0.052182]
[1735263467720,0.0909,95945.0,95942.0,0.052182]
[1735263467917,0.0909,95945.0,95944.0,0.052181]
[1735263468327,0.1250115,95946.0,95944.0,0.052181]
[1735263468529,0.0928,95953.0,95944.0,0.052181]
[1735263468530,0.095,95952.0,95944.0,0.052181]
[1735263468724,0.095,95952.0,95940.0,0.38182429]
[1735263468921,0.095,95952.0,95940.0,0.38082429]
[1735263469130,0.095,95952.0,95944.0,0.009]
[1735263469926,0.095,95952.0,95940.0,0.45782561]
[1735263469927,0.095,95952.0,95940.0,0.45982561]
[1735263470132,0.095,95952.0,95944.0,0.004]
[1735263471531,0.0928,95953.0,95944.0,0.004]
[1735263471923,0.0928,95953.0,95944.0,0.001]
[1735263472124,0.1250115,95957.0,95944.0,0.001]
[1735263472323,0.1868,95962.0,95944.0,0.001]
[1735263472731,0.001,95953.0,95943.0,0.052181]
[1735263473224,0.001,95953.0,95940.0,0.53282693]
[1735263473425,0.1868,95962.0,95940.0,0.53282693]
[1735263473631,0.1250115,95966.0,95940.0,0.45682561]
[1735263473820,0.1250115,95966.0,95944.0,0.001]
[1735263474024,0.2765,95976.0,95944.0,0.001]
[1735263475234,0.2765,95976.0,95943.0,0.052181]
[1735263475424,0.2765,95976.0,95940.0,0.6326662]
[1735263475624,4e-05,95944.0,95940.0,0.6326662]
[1735263475830,4e-05,95944.0,95943.0,0.052181]
[1735263477125,4e-05,95944.0,95943.0,0.054181]
[1735263479532,0.07592633,95970.0,95943.0,0.054181]
[1735263479729,0.27714,95976.0,95943.0,0.054181]
[1735263479935,0.07592633,95970.0,95944.0,0.052181]
[1735263480138,0.07592633,95970.0,95943.0,0.054181]
[1735263480632,0.07592633,95970.0,95943.0,0.002]
[1735263480935,0.07592633,95970.0,95944.0,0.052182]
[1735263481126,0.07592633,95970.0,95943.0,0.009]
[1735263481333,0.2765,95976.0,95943.0,0.009]
[1735263481732,0.2765,95976.0,95943.0,0.016]
[1735263482528,0.2765,95976.0,95944.0,0.007]
[1735263483235,0.2765,95976.0,95943.0,0.061183]
[1735263483436,0.2765,95976.0,95943.0,0.067183]
[1735263484035,0.2765,95976.0,95943.0,0.061183]
[1735263484343,4e-05,95944.0,95943.0,0.061183]
[1735263484735,4e-05,95944.0,95943.0,0.052183]
[1735263485136,0.2765,95976.0,95943.0,0.052183]
[1735263485337,0.2765,95976.0,95943.0,0.061183]
[1735263485641,0.2765,95976.0,95943.0,0.067183]
[1735263485842,0.2765,95976.0,95943.0,0.060183]
[1735263486140,0.052166,95975.0,95943.0,0.060183]
[1735263486439,0.052166,95975.0,95943.0,0.067183]
[1735263489238,0.052166,95975.0,95957.0,0.052175]
[1735263489443,0.27714,95976.0,95962.0,0.052173]
[1735263489642,0.2765,95976.0,95962.0,0.052173]
[1735263489837,0.2765,95976.0,95957.0,0.052176]
[1735263490037,0.2765,95976.0,95959.0,0.052174]
[1735263490240,0.2765,95976.0,95951.0,0.0967]
[1735263490547,0.2765,95976.0,95959.0,0.052175]
[1735263490947,0.2765,95976.0,95957.0,0.003]
[1735263491146,0.2765,95976.0,95962.0,0.006]
[1735263491446,0.07592633,95972.0,95962.0,0.006]
[1735263491649,0.07592633,95972.0,95964.0,0.052172]
[1735263491945,0.27706001,95976.0,95966.0,0.05217]
[1735263492148,0.2765,95976.0,95968.0,0.05217]
[1735263492743,0.2775,95976.0,95968.0,0.05217]
[1735263493749,0.2775,95976.0,95965.0,0.052171]
[1735263494446,0.2775,95976.0,95960.0,0.0877]
[1735263494645,0.07592633,95970.0,95966.0,0.05217]
[1735263494850,0.35398634,95976.0,95966.0,0.05217]
[1735263495042,0.35342633,95976.0,95967.0,0.05217]
[1735263495543,0.35242633,95976.0,95967.0,0.05217]
[1735263495741,0.35342633,95976.0,95966.0,0.05217]
[1735263495942,0.35342633,95976.0,95959.0,0.052175]
[1735263496447,0.07592633,95970.0,95959.0,0.052175]
[1735263496950,0.07592633,95970.0,95961.0,0.052173]
[1735263497743,0.07592633,95970.0,95962.0,0.052173]
[1735263499148,0.07592633,95970.0,95960.0,0.35036]
[1735263499358,0.001,95970.0,95964.0,0.052172]
[1735263500047,0.1250115,95971.0,95964.0,0.052172]
[1735263500250,0.1260115,95970.0,95964.0,0.052172]
[1735263501045,0.1260115,95970.0,95961.0,0.24884191]
[1735263501046,0.1260115,95970.0,95966.0,0.052171]
[1735263501643,0.1250115,95969.0,95966.0,0.052171]
[1735263502340,0.1250115,95969.0,95967.0,0.05217]
[1735263502546,0.001,95970.0,95967.0,0.05217]
[1735263503248,0.001,95969.0,95967.0,0.05217]
[1735263503450,0.15600587,95972.0,95968.0,0.27088402]
[1735263503647,0.15600587,95972.0,95969.0,0.0432628]
[1735263503949,0.15600587,95972.0,95969.0,0.002084]
[1735263504148,0.1842,96005.0,95969.0,0.002084]
[1735263504149,0.001,95970.0,95969.0,0.527653]
[1735263504451,0.001,95970.0,95969.0,0.56811517]
[1735263505153,0.001,95970.0,95969.0,0.73436991]
[1735263505653,0.1,96000.0,95992.0,0.1734]
[1735263505850,0.18710705,96018.0,96017.0,0.052143]
[1735263506054,0.01343805,96018.0,96017.0,0.402423]
[1735263506354,0.21840822,96033.0,96019.0,0.1734]
[1735263506855,0.21840822,96033.0,96019.0,0.3]
[1735263507249,0.00056001,96047.0,96019.0,0.3]
[1735263507554,1.4588,96046.0,96019.0,0.3]
[1735263507755,0.0962,96053.0,96019.0,0.3]
[1735263508452,8.714e-05,96027.0,96019.0,0.309]
[1735263508951,8.714e-05,96027.0,96019.0,0.01]
[1735263508952,1.4588,96026.0,96019.0,0.01]
[1735263509256,1.4588,96026.0,96020.0,0.57575442]
[1735263509445,1.4588,96026.0,96024.0,0.052139]
[1735263509641,1.45414099,96026.0,96024.0,0.052139]
[1735263510250,1.45414099,96026.0,96020.0,0.57675442]
[1735263510449,1.23362591,96026.0,96022.0,0.05214]
[1735263510846,1.23362591,96026.0,96023.0,0.00039167]
[1735263511052,1.23362591,96026.0,96024.0,0.009]
[1735263511452,1.23362591,96025.0,96024.0,0.009]
[1735263511650,1.23362591,96025.0,96022.0,0.009]
[1735263512052,1.23362591,96025.0,96021.0,0.35016]
[1735263512249,1.83362591,96025.0,96024.0,0.009]
[1735263512549,1.83362591,96025.0,96024.0,0.012]
[1735263512754,2.14622591,96025.0,96024.0,0.012]
[1735263512951,0.052139,96024.0,96022.0,0.24622965]
[1735263513163,0.3126,96023.0,96022.0,0.24622965]
[1735263513454,0.052139,96024.0,96022.0,0.24622965]
[1735263513649,0.052139,96024.0,96021.0,0.35416]
[1735263514051,0.052139,96024.0,96022.0,0.009]
[1735263514253,0.052139,96024.0,96022.0,0.012]
[1735263514455,1.23422592,96025.0,96022.0,0.003]
[1735263514650,1.23422592,96025.0,96022.0,0.012]
[1735263514651,1.23362591,96025.0,96022.0,0.012]
[1735263514857,0.3126,96023.0,96022.0,0.012]
[1735263515249,0.9126,96023.0,96017.0,0.02309504]
[1735263515451,0.3126,96015.0,95983.0,0.01564]
[1735263515655,0.3126,96003.0,95992.0,0.35016]
[1735263515859,0.0931,96002.0,95997.0,0.02464121]
[1735263516162,0.3126,95998.0,95997.0,0.0015622]
[1735263516558,0.052156,95993.0,95992.0,0.20466]
[1735263516761,0.364756,95993.0,95992.0,0.22807268]
[1735263516961,0.9126,95993.0,95992.0,0.20466]
[1735263517960,0.9126,95993.0,95992.0,0.20766]
[1735263518463,0.3126,95993.0,95992.0,0.20766]
[1735263518659,0.3126,95993.0,95992.0,0.20966]
[1735263519158,0.63767143,95997.0,95995.0,0.052155]
[1735263519354,0.63711142,95997.0,95995.0,0.052155]
[1735263520765,0.3126,95996.0,95995.0,0.054155]
[1735263521360,0.63767143,95997.0,95995.0,0.054155]
[1735263521651,0.63711142,95997.0,95995.0,0.054155]
[1735263522157,0.63711142,95997.0,95995.0,0.055155]
[1735263523053,0.63711142,95997.0,95995.0,0.053155]
[1735263523264,0.63711142,95997.0,95995.0,0.057155]
[1735263523653,0.63711142,95997.0,95995.0,0.053155]
[1735263523854,0.63711142,95997.0,95995.0,0.057155]
[1735263524461,0.58711142,95997.0,95996.0,0.12042797]
[1735263524767,0.51606149,95997.0,95996.0,0.14622797]
[1735263525148,9.056e-05,95998.0,95996.0,0.14622797]
[1735263525350,0.0935,96036.0,96027.0,0.052137]
[1735263525556,0.3126,96029.0,96027.0,0.052137]
[1735263526250,0.00012171,96028.0,96027.0,0.052137]
[1735263526454,0.00012171,96028.0,96027.0,0.059137]
[1735263526758,0.00012171,96028.0,96027.0,0.065137]
[1735263527155,0.00012171,96028.0,96027.0,0.060137]
[1735263527754,0.00012171,96028.0,96027.0,0.08295315]
[1735263528054,0.00112171,96028.0,96027.0,0.08295315]
[1735263529555,1e-08,96028.0,96027.0,0.1945921]
[1735263529764,1e-08,96028.0,96027.0,0.1965921]
[1735263529966,0.51606149,96036.0,96027.0,0.1905921]
[1735263530259,0.51606149,96036.0,96035.0,0.052133]
[1735263530559,0.51616514,96036.0,96035.0,0.16289031]
[1735263530754,0.51616514,96036.0,96035.0,0.17853031]
[1735263530957,0.51516514,96036.0,96035.0,0.17853031]
[1735263531359,0.47530514,96036.0,96035.0,0.17853031]
[1735263531666,0.28765459,96036.0,96035.0,0.17853031]
[1735263532055,0.27265459,96036.0,96035.0,0.17853031]
[1735263532257,0.0537294,96036.0,96035.0,0.17853031]
[1735263532452,0.02744757,96036.0,96035.0,0.17853031]
[1735263532761,0.2727,96078.0,96035.0,0.18053031]
[1735263533058,0.3126,96065.0,96038.0,0.052132]
[1735263533259,0.3126,96065.0,96040.0,0.05213]
[1735263533463,0.27334,96078.0,96041.0,0.00208244]
[1735263533659,0.3126,96065.0,96043.0,0.052129]
[1735263533855,0.27326001,96078.0,96044.0,0.00208237]
[1735263534162,0.2727,96078.0,96044.0,0.11254174]
[1735263534362,0.3126,96052.0,96044.0,0.00208237]
[1735263534666,0.1797,96051.0,96044.0,0.00208237]
[1735263534861,0.0946,96050.0,96044.0,0.00208237]
[1735263536562,0.0976,96050.0,96044.0,0.00208237]
[1735263538264,0.003,96050.0,96044.0,0.00208237]
[1735263539458,0.003,96050.0,96044.0,0.03108146]
[1735263541154,0.002,96050.0,96044.0,0.03208146]
[1735263542575,0.0952,96073.0,96044.0,0.03408146]
[1735263543072,0.0952,96073.0,96044.0,0.03208146]
[1735263543374,0.0952,96073.0,96044.0,0.03308146]
[1735263543574,0.0952,96073.0,96045.0,0.1184715]
[1735263543869,0.0952,96073.0,96063.0,0.052118]
[1735263543870,0.3126,96067.0,96063.0,0.052118]
[1735263544070,0.3126,96072.0,96046.0,0.00208233]
[1735263544376,0.3126,96072.0,96067.0,0.052116]
[1735263544570,0.0952,96073.0,96051.0,0.052125]
[1735263544871,0.0952,96073.0,96057.0,0.052122]
[1735263545070,0.0952,96073.0,96058.0,0.00208207]
[1735263545374,0.0952,96073.0,96058.0,0.11360361]
[1735263545875,0.004,96072.0,96058.0,0.11360361]
[1735263546460,0.004,96072.0,96059.0,0.052121]
[1735263546666,0.004,96072.0,96058.0,0.11360361]
[1735263546876,0.004,96072.0,96060.0,0.10971476]
[1735263547072,0.004,96072.0,96058.0,0.00408207]
[1735263547073,0.004,96072.0,96061.0,0.00208201]
[1735263547267,0.004,96072.0,96061.0,0.05420201]
[1735263547467,0.004,96072.0,96062.0,0.10971476]
[1735263547670,0.004,96072.0,96063.0,0.00208196]
[1735263547976,0.0952,96073.0,96063.0,0.00208196]
[1735263548372,0.4078,96073.0,96063.0,0.00208196]
[1735263548674,0.3126,96066.0,96063.0,0.00208196]
[1735263548866,0.3126,96059.0,96051.0,0.18489379]
[1735263549062,0.3126,96058.0,96051.0,0.18697601]
[1735263549269,0.3126,96057.0,96051.0,0.18697601]
[1735263549773,0.3126,96052.0,96042.0,0.18495682]
[1735263549980,0.3126,96051.0,96042.0,0.18495682]
[1735263550177,0.3126,96047.0,96042.0,0.18495682]
[1735263550479,0.3126,96051.0,96042.0,0.18495682]
[1735263551079,0.3126,96051.0,96043.0,0.05213]
[1735263552482,0.3126,96050.0,96043.0,0.05913]
[1735263552780,0.4059,96050.0,96043.0,0.06213]
[1735263552978,0.0895,96049.0,96044.0,0.052129]
[1735263553177,0.0895,96049.0,96043.0,0.01]
[1735263553374,0.06355577,96049.0,96047.0,0.052127]
[1735263554973,0.06355577,96049.0,96047.0,0.055127]
[1735263555171,0.37615577,96049.0,96047.0,0.003]
[1735263555370,0.3126,96039.0,96028.0,0.01564]
[1735263555575,0.3126,96031.0,96024.0,0.01574001]
[1735263555882,0.3126,96028.0,96024.0,0.01574001]
[1735263556072,0.3126,96025.0,96016.0,0.34996]
[1735263556276,0.3126,96017.0,96016.0,0.34996]
[1735263556669,0.3126,96017.0,96016.0,0.38722879]
[1735263556983,0.964744,96017.0,96007.0,0.00156217]
[1735263557280,0.3126,96008.0,96007.0,0.03874343]
[1735263557478,0.3126,96008.0,96007.0,0.00156217]
[1735263557671,0.9126,96008.0,96007.0,0.00156217]
[1735263559387,0.9126,96008.0,96007.0,0.00656217]
[1735263559981,0.001,96008.0,96007.0,0.00856217]
[1735263560488,0.001,96008.0,96007.0,0.06071117]
[1735263560785,0.001,96008.0,96007.0,0.06171117]
[1735263561386,0.001,96008.0,96007.0,0.17916082]
[1735263561776,0.001,96008.0,96007.0,0.17416082]
[1735263561974,0.001,96008.0,96007.0,0.18016082]
[1735263562677,0.3136,96008.0,96007.0,0.06271117]
[1735263563283,0.3136,96008.0,96007.0,0.06171117]
[1735263564077,0.3136,96008.0,96007.0,0.06271117]
[1735263566375,0.001,96008.0,96007.0,0.06271117]
[1735263566985,0.001,96008.0,96007.0,0.17582275]
[1735263567380,7.968e-05,96027.0,96025.0,0.052139]
[1735263567583,0.60007968,96027.0,96025.0,0.052139]
[1735263567886,0.3126,96026.0,96025.0,0.052139]
[1735263568286,0.9126,96026.0,96025.0,0.052139]
[1735263569790,0.9146,96026.0,96025.0,0.052139]
[1735263570484,0.9156,96026.0,96025.0,0.052139]
[1735263570995,0.9146,96026.0,96025.0,0.052139]
[1735263571184,0.9126,96026.0,96025.0,0.053139]
[1735263571378,0.9126,96026.0,96025.0,0.055139]
[1735263572089,7.968e-05,96027.0,96026.0,0.052139]
[1735263572291,0.60007968,96027.0,96026.0,0.052139]
[1735263572486,0.91267968,96027.0,96026.0,0.052139]
[1735263573085,0.91267968,96027.0,96025.0,0.03952112]
[1735263573291,0.3126,96026.0,96025.0,0.03952112]
[1735263573488,0.3618,96026.0,96025.0,0.03952112]
[1735263573690,0.9618,96026.0,96025.0,0.03952112]
[1735263573995,0.9618,96026.0,96025.0,0.03852112]
[1735263574188,0.9618,96026.0,96025.0,0.03652112]
[1735263574387,0.9618,96026.0,96015.0,0.052144]
[1735263574685,0.3126,96016.0,96015.0,0.052144]
[1735263575191,0.9126,96016.0,96015.0,0.052144]
[1735263575589,0.9126,96016.0,96015.0,0.055144]
[1735263576895,7.968e-05,96027.0,96020.0,0.052142]
[1735263577194,0.60007968,96027.0,96020.0,0.052142]
[1735263577393,0.3126,96021.0,96020.0,0.052142]
[1735263577890,0.9126,96021.0,96020.0,0.052142]
[1735263578096,0.3126,96021.0,96020.0,0.054142]
[1735263578291,0.3126,96021.0,96020.0,0.006]
[1735263578593,0.3126,96021.0,96020.0,0.09076494]
[1735263578797,0.3126,96021.0,96020.0,0.09476494]
[1735263580184,0.3126,96021.0,96020.0,0.09276494]
[1735263580380,0.3126,96021.0,96020.0,0.09476494]
[1735263581089,7.968e-05,96027.0,96020.0,0.04262294]
[1735263581297,0.60007968,96027.0,96026.0,0.052139]
[1735263581689,0.91267968,96027.0,96026.0,0.052139]
[1735263583995,0.91267968,96027.0,96026.0,0.053139]
[1735263584497,0.91267968,96027.0,96026.0,0.054139]
[1735263585192,0.91267968,96027.0,96026.0,0.055139]
[1735263586703,7.968e-05,96027.0,96026.0,0.054139]
[1735263586893,7.968e-05,96027.0,96026.0,0.055139]
[1735263587295,0.31267968,96027.0,96026.0,0.055139]
[1735263588396,0.31267968,96027.0,96026.0,0.30263061]
[1735263589891,0.40618486,96027.0,96026.0,0.003]
[1735263590191,1.00618486,96027.0,96026.0,0.003]
[1735263591097,0.91267968,96027.0,96026.0,0.001]
[1735263591290,0.91267968,96027.0,96026.0,0.003]
[1735263592191,0.91267968,96027.0,96026.0,0.001]
[1735263592392,0.91267968,96027.0,96026.0,0.003]
[1735263596295,0.91267968,96027.0,96026.0,0.25162731]
[1735263598807,0.91267968,96027.0,96026.0,0.003]
[1735263599499,0.91267968,96027.0,96022.0,0.05214]
[1735263599696,0.3126,96023.0,96022.0,0.05214]
[1735263600113,0.9126,96023.0,96022.0,0.05214]
[1735263600610,0.9126,96023.0,96022.0,0.05414]
[1735263601305,0.9126,96023.0,96022.0,0.002]
[1735263601710,0.9126,96023.0,96022.0,0.006]
[1735263602007,0.3126,96023.0,96022.0,0.058141]
[1735263602197,0.3126,96023.0,96022.0,0.148841]
[1735263602402,0.09376491,96025.0,96024.0,0.05214]
[1735263602906,7.968e-05,96027.0,96022.0,0.0947]
[1735263602907,7.968e-05,96027.0,96026.0,0.052139]
[1735263603213,0.00092947,96040.0,96039.0,0.052132]
[1735263603401,0.16364617,96046.0,96045.0,0.052128]
[1735263604206,1.07624617,96046.0,96024.0,0.003]
[1735263604417,0.002,96040.0,96025.0,0.09260744]
[1735263604607,0.002,96040.0,96039.0,0.052132]
[1735263605809,0.003,96046.0,96045.0,0.052128]
[1735263606314,0.3156,96046.0,96045.0,0.052128]
[1735263606515,0.3126,96046.0,96045.0,0.052128]
[1735263606810,0.3126,96046.0,96040.0,0.1787]
[1735263606811,0.27050922,96096.0,96040.0,0.1787]
[1735263607017,0.3126,96052.0,96051.0,0.052125]
[1735263607502,0.00212169,96068.0,96045.0,0.31323616]
[1735263607707,0.60156168,96068.0,96058.0,0.052121]
[1735263608116,0.60256168,96068.0,96058.0,0.052121]
[1735263608616,0.60156168,96068.0,96058.0,0.052121]
[1735263609110,0.60156168,96068.0,96056.0,0.24808218]
[1735263609316,0.60156168,96068.0,96059.0,0.052121]
[1735263609516,0.60156168,96068.0,96056.0,0.24808218]
[1735263609707,0.60156168,96068.0,96061.0,0.05212]
[1735263610802,0.60156168,96068.0,96063.0,0.052118]
[1735263611412,0.60256168,96068.0,96064.0,0.052118]
[1735263611615,0.60256168,96068.0,96060.0,0.0975]
[1735263611920,0.60256168,96068.0,96066.0,0.052117]
[1735263612306,0.60156168,96068.0,96066.0,0.052117]
[1735263612507,0.60356168,96068.0,96066.0,0.052117]
[1735263612914,0.00356168,96068.0,96066.0,0.052117]
[1735263613510,0.003,96068.0,96066.0,0.052117]
[1735263614515,0.004,96068.0,96066.0,0.052117]
[1735263615415,0.04475736,96083.0,96066.0,0.052117]
[1735263615416,0.04475736,96083.0,96067.0,0.2777]
[1735263615616,0.1,96100.0,96083.0,0.052108]
[1735263615821,0.1,96100.0,96085.0,0.052106]
[1735263615822,1.041,96099.0,96085.0,0.052106]
[1735263616122,1.041,96099.0,96087.0,0.052106]
[1735263616319,1.041,96099.0,96088.0,0.00208142]
[1735263616623,1.041,96099.0,96088.0,0.27849686]
[1735263617119,1.041,96099.0,96088.0,0.72481172]
[1735263617825,1.041,96099.0,96089.0,0.01564]
[1735263618021,1.042,96099.0,96090.0,0.00208138]
[1735263618329,1.042,96099.0,96090.0,0.26555287]
[1735263618627,1.042,96099.0,96091.0,0.24414]
[1735263618921,1.042,96099.0,96092.0,0.00208133]
[1735263619110,1.041,96099.0,96092.0,0.27099184]
[1735263619516,1.041,96099.0,96093.0,0.24807642]
[1735263619714,1.041,96099.0,96094.0,0.00208129]
[1735263619926,1.041,96099.0,96094.0,0.27421052]
[1735263620522,1.042,96099.0,96094.0,0.27421052]
[1735263620822,1.042,96099.0,96094.0,0.1177657]
[1735263621022,1.041,96099.0,96094.0,0.1177657]
[1735263621322,1.041,96099.0,96094.0,0.1237657]
[1735263622317,1.041,96099.0,96094.0,0.1267657]
[1735263629034,1.041,96099.0,96095.0,0.15628223]
[1735263629035,0.89087075,96099.0,96095.0,0.15628223]
[1735263629224,0.83187075,96099.0,96098.0,0.0521]
[1735263629624,0.83187075,96099.0,96098.0,0.16980906]
[1735263629832,0.80976075,96099.0,96098.0,0.16980906]
[1735263630034,0.76165075,96099.0,96098.0,0.16980906]
[1735263630533,0.76165075,96099.0,96098.0,0.17180906]
[1735263631131,0.76165075,96099.0,96098.0,0.17480906]
[1735263633331,0.62456,96097.0,96094.0,0.00208129]
[1735263633636,0.62456,96097.0,96095.0,0.16748605]
[1735263634236,0.2346,96098.0,96097.0,0.052101]
[1735263634729,0.2346,96098.0,96097.0,0.16922977]
[1735263636423,0.2346,96098.0,96097.0,0.17122977]
[1735263636638,0.2346,96098.0,96097.0,0.054101]
[1735263636836,0.2346,96098.0,96097.0,0.17348236]
[1735263637641,0.2346,96098.0,96097.0,0.17648236]
[1735263637827,0.2346,96098.0,96097.0,0.19212236]
[1735263640143,0.2346,96098.0,96097.0,0.24439899]
[1735263640740,1.45916,96098.0,96097.0,0.19229799]
[1735263641045,1.45916,96098.0,96094.0,0.05531645]
[1735263641242,0.62456,96095.0,96094.0,0.00208129]
[1735263641955,0.2346,96098.0,96097.0,0.052101]
[1735263642341,0.2346,96098.0,96097.0,0.16823457]
[1735263643651,0.2346,96098.0,96094.0,0.00508129]
[1735263643652,1.45916,96098.0,96094.0,0.00608129]
[1735263643858,0.62456,96094.0,96087.0,0.01564]
[1735263644049,0.62456,96085.0,96081.0,0.37089378]
[1735263644249,0.62456,96082.0,96081.0,0.11199378]
[1735263644744,0.62456,96082.0,96076.0,0.01564]
[1735263644745,0.08827406,96082.0,96076.0,0.05282882]
[1735263644947,0.08827406,96082.0,96058.0,0.01564]
[1735263644948,0.052111,96080.0,96058.0,0.01564]
[1735263645250,0.62456,96057.0,96056.0,0.1903043]
[1735263645444,0.62456,96057.0,96056.0,0.24369053]
[1735263645649,0.7844639,96057.0,96056.0,0.24369053]
[1735263646447,0.7844639,96057.0,96056.0,0.05338623]
[1735263646448,0.84336704,96057.0,96056.0,0.05338623]
[1735263646752,0.84336704,96057.0,96048.0,0.01564]
[1735263646753,0.21880704,96057.0,96055.0,0.052123]
[1735263646949,0.21880704,96057.0,96056.0,0.1088963]
[1735263647151,0.1599039,96057.0,96055.0,0.052123]
[1735263647458,0.1599039,96057.0,96056.0,0.13065192]
[1735263647459,0.1609039,96057.0,96056.0,0.13065192]
[1735263647956,0.13614113,96057.0,96056.0,0.13065192]
[1735263648153,0.13614113,96057.0,96056.0,0.13048151]
[1735263648455,0.13514113,96057.0,96056.0,0.12348151]
[1735263648652,0.13614113,96057.0,96056.0,0.12948151]
[1735263649060,0.13614113,96057.0,96056.0,0.12548151]
[1735263649850,0.13614113,96057.0,96056.0,0.12948151]
[1735263650757,0.13514113,96057.0,96056.0,0.13048151]
[1735263652752,0.09414113,96057.0,96056.0,0.13048151]
[1735263653549,0.62456,96057.0,96056.0,0.052087]
[1735263655860,0.62456,96057.0,96056.0,0.10421]
[1735263656561,0.1615,96069.0,96065.0,0.052118]
[1735263657066,0.62456,96066.0,96065.0,0.052118]
[1735263657460,0.1990883,96086.0,96065.0,0.21368031]
[1735263657461,0.1555883,96086.0,96065.0,0.21368031]
[1735263657658,0.62456,96072.0,96071.0,0.052115]
[1735263657961,0.57456,96072.0,96071.0,0.052115]
[1735263658164,0.32480001,96091.0,96083.0,0.052108]
[1735263658366,0.3242,96091.0,96084.0,0.041087]
[1735263658565,0.3242,96091.0,96065.0,0.1089741]
[1735263658566,0.57456,96076.0,96075.0,0.052113]
[1735263658949,0.57456,96076.0,96075.0,0.16253676]
[1735263660061,0.32480001,96091.0,96084.0,0.052108]